[Event "Late-Titled-Tuesday-Blitz-February-27-2024"]
[Site "Chess.com"]
[Date "2024.02.27"]
[Round "8"]
[White "Schattman"]
[Black "Felix-Rose"]
[Result "1-0"]
[WhiteElo "2420"]
[BlackElo "2265"]
[TimeControl "180+1"]
[EndTime "15:28:30 PST"]
[Termination "Schattman won by checkmate"]

1. f4 {[%clk 0:03:00.9]} 1... Nf6 {[%clk 0:02:57]} 2. Nf3 {[%clk 0:02:57.7]}
2... g6 {[%clk 0:02:54.4]} 3. g3 {[%clk 0:02:57.9]} 3... Bg7 {[%clk 0:02:54.7]}
4. d3 {[%clk 0:02:56.9]} 4... d5 {[%clk 0:02:51.8]} 5. Bg2 {[%clk 0:02:57.2]}
5... O-O {[%clk 0:02:51.9]} 6. O-O {[%clk 0:02:57.2]} 6... Nc6 {[%clk
0:02:49.9]} 7. Ne5 {[%clk 0:02:54.6]} 7... Nxe5 {[%clk 0:02:48.4]} 8. fxe5
{[%clk 0:02:54.2]} 8... Ne8 {[%clk 0:02:37.6]} 9. d4 {[%clk 0:02:52.7]} 9... Bf5
{[%clk 0:02:30.8]} 10. Nc3 {[%clk 0:02:49.3]} 10... e6 {[%clk 0:02:30.2]} 11. e4
{[%clk 0:02:42.2]} 11... dxe4 {[%clk 0:02:27.8]} 12. Nxe4 {[%clk 0:02:41.4]}
12... Bxe4 {[%clk 0:02:26]} 13. Bxe4 {[%clk 0:02:40.5]} 13... c6 {[%clk
0:02:22.3]} 14. c3 {[%clk 0:02:38.6]} 14... Qd7 {[%clk 0:02:22.2]} 15. Qe2
{[%clk 0:02:29]} 15... Nc7 {[%clk 0:02:21.8]} 16. Bg5 {[%clk 0:02:18.9]} 16...
Nd5 {[%clk 0:02:13.8]} 17. Rf2 {[%clk 0:02:08.6]} 17... f5 {[%clk 0:02:02.1]}
18. exf6 {[%clk 0:02:05.6]} 18... Nxf6 {[%clk 0:01:58.5]} 19. Bc2 {[%clk
0:01:56.4]} 19... Nd5 {[%clk 0:01:54.1]} 20. Raf1 {[%clk 0:01:51.4]} 20... Rxf2
{[%clk 0:01:51.5]} 21. Rxf2 {[%clk 0:01:51.6]} 21... Rf8 {[%clk 0:01:49.4]} 22.
Rxf8+ {[%clk 0:01:45.3]} 22... Kxf8 {[%clk 0:01:45.7]} 23. Qf3+ {[%clk
0:01:43.1]} 23... Ke8 {[%clk 0:01:39.7]} 24. h4 {[%clk 0:01:41.1]} 24... Qf7
{[%clk 0:01:30]} 25. Kg2 {[%clk 0:01:36]} 25... Qxf3+ {[%clk 0:01:28.8]} 26.
Kxf3 {[%clk 0:01:36.1]} 26... e5 {[%clk 0:01:27.9]} 27. dxe5 {[%clk 0:01:33.7]}
27... Bxe5 {[%clk 0:01:28.1]} 28. h5 {[%clk 0:01:32.3]} 28... Kf7 {[%clk
0:01:27.1]} 29. hxg6+ {[%clk 0:01:24.5]} 29... hxg6 {[%clk 0:01:28]} 30. Bd2
{[%clk 0:01:15.1]} 30... Kf6 {[%clk 0:01:23.2]} 31. Be4 {[%clk 0:01:14]} 31...
Ne7 {[%clk 0:01:22.2]} 32. a4 {[%clk 0:01:12.1]} 32... Nc8 {[%clk 0:01:20.8]}
33. a5 {[%clk 0:01:10.3]} 33... a6 {[%clk 0:01:19.4]} 34. g4 {[%clk 0:01:00.1]}
34... Nd6 {[%clk 0:01:15.7]} 35. Bd3 {[%clk 0:00:57.6]} 35... g5 {[%clk
0:01:12.6]} 36. Be3 {[%clk 0:00:49.8]} 36... Ne8 {[%clk 0:00:53]} 37. Bc5 {[%clk
0:00:46.8]} 37... Bc7 {[%clk 0:00:50]} 38. b4 {[%clk 0:00:44.8]} 38... Be5
{[%clk 0:00:49.7]} 39. Bf5 {[%clk 0:00:38.2]} 39... Bxc3 {[%clk 0:00:37.5]} 40.
Bc8 {[%clk 0:00:36.6]} 40... Nc7 {[%clk 0:00:31.7]} 41. Bxb7 {[%clk 0:00:26.1]}
41... Nd5 {[%clk 0:00:31.8]} 42. Bxa6 {[%clk 0:00:19.6]} 42... Nxb4 {[%clk
0:00:31.9]} 43. Bc4 {[%clk 0:00:16.3]} 43... Nd5 {[%clk 0:00:20]} 44. Bxd5
{[%clk 0:00:12.1]} 44... Bxa5 {[%clk 0:00:11.8]} 45. Bd4+ {[%clk 0:00:11.7]}
45... Kg6 {[%clk 0:00:10.5]} 46. Bxc6 {[%clk 0:00:11.4]} 46... Bd8 {[%clk
0:00:10.8]} 47. Be4+ {[%clk 0:00:11.2]} 47... Kh6 {[%clk 0:00:10.9]} 48. Ke2
{[%clk 0:00:11]} 48... Bc7 {[%clk 0:00:10.5]} 49. Kd3 {[%clk 0:00:10.8]} 49...
Bf4 {[%clk 0:00:10.7]} 50. Kc4 {[%clk 0:00:10.7]} 50... Bc1 {[%clk 0:00:10.8]}
51. Kd5 {[%clk 0:00:10.8]} 51... Bd2 {[%clk 0:00:10.8]} 52. Ke6 {[%clk
0:00:10.8]} 52... Bb4 {[%clk 0:00:07.9]} 53. Be3 {[%clk 0:00:09.3]} 53... Bc3
{[%clk 0:00:07.5]} 54. Kf5 {[%clk 0:00:08.2]} 54... Kg7 {[%clk 0:00:02.3]} 55.
Bxg5 {[%clk 0:00:07.9]} 55... Bb4 {[%clk 0:00:03.2]} 56. Bf4 {[%clk 0:00:08]}
56... Be7 {[%clk 0:00:03.8]} 57. Be5+ {[%clk 0:00:07.9]} 57... Kh7 {[%clk
0:00:04.5]} 58. g5 {[%clk 0:00:08.2]} 58... Kg8 {[%clk 0:00:04.2]} 59. g6 {[%clk
0:00:07.5]} 59... Bf8 {[%clk 0:00:04.3]} 60. Bd5# {[%clk 0:00:07.3]} 1-0

[Event "Late-Titled-Tuesday-Blitz-February-27-2024"]
[Site "Chess.com"]
[Date "2024.02.27"]
[Round "8"]
[White "Rawnsdale"]
[Black "ElVital"]
[Result "1-0"]
[WhiteElo "2512"]
[BlackElo "2359"]
[TimeControl "180+1"]
[EndTime "15:28:31 PST"]
[Termination "Rawnsdale won by checkmate"]

1. e4 {[%clk 0:02:40.6]} 1... c5 {[%clk 0:02:59]} 2. Nf3 {[%clk 0:02:40.5]} 2...
d6 {[%clk 0:02:59.4]} 3. d4 {[%clk 0:02:40.5]} 3... cxd4 {[%clk 0:03:00.3]} 4.
Nxd4 {[%clk 0:02:41.4]} 4... Nf6 {[%clk 0:03:00.8]} 5. Nc3 {[%clk 0:02:41.6]}
5... g6 {[%clk 0:02:58.6]} 6. Bg5 {[%clk 0:02:38.8]} 6... Bg7 {[%clk 0:02:57.4]}
7. Qd2 {[%clk 0:02:38.6]} 7... h6 {[%clk 0:02:56.4]} 8. Bh4 {[%clk 0:02:33.6]}
8... g5 {[%clk 0:02:56.3]} 9. Bg3 {[%clk 0:02:33.2]} 9... Nh5 {[%clk 0:02:57]}
10. O-O-O {[%clk 0:02:31.1]} 10... Nxg3 {[%clk 0:02:56.7]} 11. hxg3 {[%clk
0:02:31.2]} 11... Nc6 {[%clk 0:02:57.1]} 12. Nb3 {[%clk 0:02:28.8]} 12... Be6
{[%clk 0:02:55.6]} 13. Kb1 {[%clk 0:02:28.4]} 13... Rc8 {[%clk 0:02:53.6]} 14.
f4 {[%clk 0:02:23]} 14... Na5 {[%clk 0:02:36.1]} 15. Nd5 {[%clk 0:02:13.1]}
15... Nc4 {[%clk 0:02:20.7]} 16. Bxc4 {[%clk 0:01:38.6]} 16... Rxc4 {[%clk
0:02:21.6]} 17. fxg5 {[%clk 0:01:36]} 17... Rxe4 {[%clk 0:02:21.5]} 18. gxh6
{[%clk 0:01:34.1]} 18... Be5 {[%clk 0:02:13.2]} 19. Nf4 {[%clk 0:01:30.7]} 19...
Bf5 {[%clk 0:01:56.9]} 20. Rh5 {[%clk 0:01:24.4]} 20... Bh7 {[%clk 0:01:54.5]}
21. Nc5 {[%clk 0:01:17.4]} 21... Rc4 {[%clk 0:01:41]} 22. Ncd3 {[%clk
0:01:05.6]} 22... Qb6 {[%clk 0:01:35.2]} 23. b3 {[%clk 0:00:47.1]} 23... Bc3
{[%clk 0:01:26.7]} 24. Qe2 {[%clk 0:00:47.1]} 24... Rd4 {[%clk 0:01:17.3]} 25.
Nd5 {[%clk 0:00:44.4]} 25... Rxd5 {[%clk 0:01:14.6]} 26. Rxd5 {[%clk 0:00:44]}
26... Bf6 {[%clk 0:01:14.1]} 27. Nf4 {[%clk 0:00:35.5]} 27... Qc6 {[%clk
0:01:04.9]} 28. Rxd6 {[%clk 0:00:26.1]} 28... Qxc2+ {[%clk 0:00:57.9]} 29. Qxc2
{[%clk 0:00:24.4]} 29... Bxc2+ {[%clk 0:00:58.8]} 30. Kxc2 {[%clk 0:00:24.2]}
30... exd6 {[%clk 0:00:59.7]} 31. Rxd6 {[%clk 0:00:24.8]} 31... Be5 {[%clk
0:00:58.9]} 32. Rd5 {[%clk 0:00:15.2]} 32... f6 {[%clk 0:00:59.3]} 33. Ng6
{[%clk 0:00:14.3]} 33... Rxh6 {[%clk 0:00:59.1]} 34. Nxe5 {[%clk 0:00:14.4]}
34... fxe5 {[%clk 0:00:59.1]} 35. Rxe5+ {[%clk 0:00:15.3]} 35... Kd7 {[%clk
0:00:58.6]} 36. Re2 {[%clk 0:00:13.9]} 36... Rg6 {[%clk 0:00:57.8]} 37. Re3
{[%clk 0:00:14.4]} 37... b5 {[%clk 0:00:53.2]} 38. Kd3 {[%clk 0:00:14.7]} 38...
b4 {[%clk 0:00:53.4]} 39. Ke4 {[%clk 0:00:14.9]} 39... Ra6 {[%clk 0:00:43.8]}
40. Re2 {[%clk 0:00:14]} 40... Ke6 {[%clk 0:00:44.3]} 41. Kd4+ {[%clk
0:00:12.6]} 41... Kd6 {[%clk 0:00:42.7]} 42. Kc4 {[%clk 0:00:12.9]} 42... Rb6
{[%clk 0:00:40.7]} 43. Rf2 {[%clk 0:00:13.2]} 43... Ke5 {[%clk 0:00:39.4]} 44.
Rf8 {[%clk 0:00:11.3]} 44... a5 {[%clk 0:00:37]} 45. Rc8 {[%clk 0:00:10.8]}
45... Kd6 {[%clk 0:00:33.4]} 46. Rg8 {[%clk 0:00:08.5]} 46... Rb7 {[%clk
0:00:29.5]} 47. Rg6+ {[%clk 0:00:07.8]} 47... Ke5 {[%clk 0:00:30.2]} 48. Rg5+
{[%clk 0:00:08.2]} 48... Ke4 {[%clk 0:00:24.9]} 49. Rxa5 {[%clk 0:00:09.1]}
49... Rb6 {[%clk 0:00:18.5]} 50. Rb5 {[%clk 0:00:06.6]} 50... Ra6 {[%clk
0:00:14.8]} 51. Rxb4 {[%clk 0:00:06.1]} 51... Rxa2 {[%clk 0:00:15.3]} 52. Kc5+
{[%clk 0:00:05.8]} 52... Ke5 {[%clk 0:00:14.7]} 53. Rc4 {[%clk 0:00:05.9]} 53...
Ra5+ {[%clk 0:00:10.1]} 54. Kc6 {[%clk 0:00:04.7]} 54... Ra8 {[%clk 0:00:11]}
55. b4 {[%clk 0:00:04.4]} 55... Rc8+ {[%clk 0:00:11.6]} 56. Kb5 {[%clk
0:00:04.9]} 56... Rb8+ {[%clk 0:00:12.5]} 57. Ka4 {[%clk 0:00:05.1]} 57... Ra8+
{[%clk 0:00:13.1]} 58. Kb3 {[%clk 0:00:05.6]} 58... Kd5 {[%clk 0:00:14]} 59.
Rc5+ {[%clk 0:00:05.8]} 59... Kd6 {[%clk 0:00:14.9]} 60. Kc4 {[%clk 0:00:06.3]}
60... Ra1 {[%clk 0:00:14.4]} 61. Rg5 {[%clk 0:00:06.5]} 61... Rc1+ {[%clk
0:00:14.3]} 62. Kb5 {[%clk 0:00:06.9]} 62... Kc7 {[%clk 0:00:14.5]} 63. Rg7+
{[%clk 0:00:06.1]} 63... Kb8 {[%clk 0:00:14.9]} 64. Kb6 {[%clk 0:00:05.9]} 64...
Re1 {[%clk 0:00:15.5]} 65. Rg8+ {[%clk 0:00:05.8]} 65... Re8 {[%clk 0:00:11.9]}
66. Rxe8# {[%clk 0:00:06.7]} 1-0

[Event "Late-Titled-Tuesday-Blitz-February-27-2024"]
[Site "Chess.com"]
[Date "2024.02.27"]
[Round "8"]
[White "Inepton_Fermion"]
[Black "Zavgorodniy_Sergiy"]
[Result "1/2-1/2"]
[WhiteElo "2462"]
[BlackElo "2622"]
[TimeControl "180+1"]
[EndTime "15:28:35 PST"]
[Termination "Game drawn - insufficient material"]

1. d4 {[%clk 0:03:00.9]} 1... d5 {[%clk 0:02:58.8]} 2. Nc3 {[%clk 0:03:01]} 2...
Nf6 {[%clk 0:02:58.7]} 3. Bg5 {[%clk 0:03:01.3]} 3... Nbd7 {[%clk 0:02:55.9]} 4.
Nf3 {[%clk 0:03:00.9]} 4... e6 {[%clk 0:02:55.8]} 5. e4 {[%clk 0:03:00.1]} 5...
dxe4 {[%clk 0:02:55.7]} 6. Nxe4 {[%clk 0:02:59.7]} 6... b6 {[%clk 0:02:54.5]} 7.
Bb5 {[%clk 0:02:57.4]} 7... Bb7 {[%clk 0:02:45.7]} 8. Ne5 {[%clk 0:01:34.7]}
8... Bxe4 {[%clk 0:02:37.4]} 9. Bxd7+ {[%clk 0:01:13.5]} 9... Ke7 {[%clk
0:02:29.7]} 10. Bc6 {[%clk 0:01:09.7]} 10... h6 {[%clk 0:02:06.8]} 11. Bxe4
{[%clk 0:01:04.6]} 11... Qd6 {[%clk 0:02:00.5]} 12. Bxf6+ {[%clk 0:01:02.9]}
12... gxf6 {[%clk 0:02:00.5]} 13. Bxa8 {[%clk 0:01:03.3]} 13... fxe5 {[%clk
0:02:00.7]} 14. dxe5 {[%clk 0:00:57.1]} 14... Qxe5+ {[%clk 0:01:38.3]} 15. Qe2
{[%clk 0:00:56.2]} 15... Qxb2 {[%clk 0:01:38.4]} 16. O-O {[%clk 0:00:55.6]}
16... Bg7 {[%clk 0:01:15.2]} 17. Rad1 {[%clk 0:00:55.1]} 17... Rxa8 {[%clk
0:01:10.7]} 18. Qd3 {[%clk 0:00:51.7]} 18... Qxa2 {[%clk 0:01:06.1]} 19. Qd7+
{[%clk 0:00:46.4]} 19... Kf8 {[%clk 0:01:04.9]} 20. Qxc7 {[%clk 0:00:46.2]}
20... Kg8 {[%clk 0:01:03.2]} 21. Rd7 {[%clk 0:00:42.5]} 21... Rf8 {[%clk
0:01:03.3]} 22. Qxa7 {[%clk 0:00:40.6]} 22... Qxc2 {[%clk 0:00:57.4]} 23. Qxb6
{[%clk 0:00:40.1]} 23... Qc4 {[%clk 0:00:56.4]} 24. Qc7 {[%clk 0:00:38.3]} 24...
Qg4 {[%clk 0:00:53.7]} 25. Rd8 {[%clk 0:00:35.6]} 25... Qf5 {[%clk 0:00:51.3]}
26. Rxf8+ {[%clk 0:00:35.3]} 26... Bxf8 {[%clk 0:00:52.2]} 27. Qg3+ {[%clk
0:00:35.3]} 27... Kh7 {[%clk 0:00:49.4]} 28. h3 {[%clk 0:00:35.3]} 28... h5
{[%clk 0:00:47.5]} 29. Rd1 {[%clk 0:00:35]} 29... Be7 {[%clk 0:00:43.4]} 30. Qd3
{[%clk 0:00:35]} 30... Qxd3 {[%clk 0:00:41]} 31. Rxd3 {[%clk 0:00:35.9]} 31...
Kg6 {[%clk 0:00:41.7]} 32. g3 {[%clk 0:00:36.3]} 32... h4 {[%clk 0:00:39.4]} 33.
g4 {[%clk 0:00:34.3]} 33... f5 {[%clk 0:00:38.8]} 34. Kg2 {[%clk 0:00:31.2]}
34... fxg4 {[%clk 0:00:37.1]} 35. hxg4 {[%clk 0:00:32.1]} 35... Kg5 {[%clk
0:00:35.4]} 36. Kh3 {[%clk 0:00:31.8]} 36... Bc5 {[%clk 0:00:33.4]} 37. Rd2
{[%clk 0:00:28.2]} 37... e5 {[%clk 0:00:31.7]} 38. f3 {[%clk 0:00:18.6]} 38...
Bd4 {[%clk 0:00:32]} 39. Ra2 {[%clk 0:00:17.8]} 39... Kf4 {[%clk 0:00:30.1]} 40.
Ra3 {[%clk 0:00:18]} 40... Kg5 {[%clk 0:00:28.6]} 41. Rb3 {[%clk 0:00:18.4]}
41... Bf2 {[%clk 0:00:24.3]} 42. Rb8 {[%clk 0:00:17.8]} 42... Kg6 {[%clk
0:00:21.4]} 43. Rf8 {[%clk 0:00:17.5]} 43... Bg3 {[%clk 0:00:20.6]} 44. Rf5
{[%clk 0:00:17.6]} 44... Kh6 {[%clk 0:00:18.7]} 45. Rh5+ {[%clk 0:00:17.5]}
45... Kg6 {[%clk 0:00:19.1]} 46. Kg2 {[%clk 0:00:17.8]} 46... Bf4 {[%clk
0:00:16.6]} 47. Kf1 {[%clk 0:00:17.5]} 47... Bg3 {[%clk 0:00:15.4]} 48. Ke2
{[%clk 0:00:17.6]} 48... Kf6 {[%clk 0:00:13.8]} 49. Kd3 {[%clk 0:00:17.8]} 49...
Kg6 {[%clk 0:00:12.6]} 50. Ke4 {[%clk 0:00:18.1]} 50... Kf6 {[%clk 0:00:11.4]}
51. Kd5 {[%clk 0:00:18.4]} 51... Kg7 {[%clk 0:00:08.6]} 52. Ke6 {[%clk
0:00:17.4]} 52... Kg6 {[%clk 0:00:06.8]} 53. Kd5 {[%clk 0:00:15.3]} 53... Kf7
{[%clk 0:00:05.2]} 54. Ke4 {[%clk 0:00:14.4]} 54... Kg6 {[%clk 0:00:05.4]} 55.
Kd3 {[%clk 0:00:14.5]} 55... Kf6 {[%clk 0:00:05.2]} 56. Ke2 {[%clk 0:00:14.5]}
56... Kg6 {[%clk 0:00:05.6]} 57. Kf1 {[%clk 0:00:14.7]} 57... Kf6 {[%clk
0:00:06.2]} 58. Kg2 {[%clk 0:00:15]} 58... Kg6 {[%clk 0:00:06.6]} 59. Kh3 {[%clk
0:00:15.3]} 59... Kf6 {[%clk 0:00:07.1]} 60. Rxh4 {[%clk 0:00:15.5]} 60... Bxh4
{[%clk 0:00:05.1]} 61. Kxh4 {[%clk 0:00:15.8]} 61... Kg6 {[%clk 0:00:05.7]} 62.
Kh3 {[%clk 0:00:12.4]} 62... Kf6 {[%clk 0:00:05.1]} 63. Kg3 {[%clk 0:00:12]}
63... Kg5 {[%clk 0:00:05.3]} 64. Kf2 {[%clk 0:00:08.1]} 64... e4 {[%clk
0:00:05.7]} 65. fxe4 {[%clk 0:00:05.5]} 65... Kf4 {[%clk 0:00:05.9]} 66. Kg2
{[%clk 0:00:02.9]} 66... Kxg4 {[%clk 0:00:05.9]} 67. Kf2 {[%clk 0:00:02.6]}
67... Kf4 {[%clk 0:00:06.4]} 68. Ke2 {[%clk 0:00:02.7]} 68... Kxe4 {[%clk
0:00:06.7]} 1/2-1/2

[Event "Late-Titled-Tuesday-Blitz-February-27-2024"]
[Site "Chess.com"]
[Date "2024.02.27"]
[Round "8"]
[White "Baronessa08"]
[Black "PepeCuenca"]
[Result "1-0"]
[WhiteElo "2541"]
[BlackElo "2695"]
[TimeControl "180+1"]
[EndTime "15:28:36 PST"]
[Termination "Baronessa08 won on time"]

1. Nf3 {[%clk 0:03:00.9]} 1... Nf6 {[%clk 0:02:59.8]} 2. g3 {[%clk 0:03:00.5]}
2... g6 {[%clk 0:03:00]} 3. c4 {[%clk 0:02:59.6]} 3... Bg7 {[%clk 0:03:00.9]} 4.
d4 {[%clk 0:02:59.2]} 4... O-O {[%clk 0:03:01.8]} 5. Bg2 {[%clk 0:02:59.6]} 5...
d6 {[%clk 0:03:02.4]} 6. O-O {[%clk 0:02:57.4]} 6... Nc6 {[%clk 0:03:01.8]} 7.
d5 {[%clk 0:02:54.3]} 7... Na5 {[%clk 0:03:00.1]} 8. Nfd2 {[%clk 0:02:42.9]}
8... c5 {[%clk 0:02:56.8]} 9. Nc3 {[%clk 0:02:40.2]} 9... a6 {[%clk 0:02:56.4]}
10. Qc2 {[%clk 0:02:20.7]} 10... b5 {[%clk 0:02:53]} 11. cxb5 {[%clk 0:02:17.7]}
11... axb5 {[%clk 0:02:53.9]} 12. Nxb5 {[%clk 0:02:14.5]} 12... Bf5 {[%clk
0:02:49.1]} 13. e4 {[%clk 0:02:11.5]} 13... Bc8 {[%clk 0:02:48.4]} 14. a4 {[%clk
0:02:01]} 14... Ba6 {[%clk 0:02:41.7]} 15. Re1 {[%clk 0:01:54.7]} 15... Nd7
{[%clk 0:02:31.4]} 16. Rb1 {[%clk 0:01:40.7]} 16... Qb6 {[%clk 0:01:00.7]} 17.
Bf1 {[%clk 0:01:28.7]} 17... Rfc8 {[%clk 0:00:55.4]} 18. b3 {[%clk 0:01:12.9]}
18... Ne5 {[%clk 0:00:33]} 19. Kg2 {[%clk 0:01:03.2]} 19... e6 {[%clk
0:00:25.1]} 20. Nc4 {[%clk 0:01:01.7]} 20... Nexc4 {[%clk 0:00:24.1]} 21. bxc4
{[%clk 0:01:01.1]} 21... Qd8 {[%clk 0:00:20.2]} 22. Bb2 {[%clk 0:00:52.8]} 22...
Bxb2 {[%clk 0:00:18.4]} 23. Rxb2 {[%clk 0:00:49.6]} 23... e5 {[%clk 0:00:14.9]}
24. Reb1 {[%clk 0:00:46.6]} 24... Qe7 {[%clk 0:00:14.4]} 25. Na3 {[%clk
0:00:43.9]} 25... Qc7 {[%clk 0:00:11.5]} 26. Rb6 {[%clk 0:00:41.7]} 26... Rcb8
{[%clk 0:00:09.6]} 27. Qb2 {[%clk 0:00:38.6]} 27... Rb7 {[%clk 0:00:05.7]} 28.
Rxb7 {[%clk 0:00:34.6]} 28... Nxb7 {[%clk 0:00:04.8]} 29. Qb6 {[%clk 0:00:33.1]}
29... Qxb6 {[%clk 0:00:05.3]} 30. Rxb6 {[%clk 0:00:33.9]} 30... Kf8 {[%clk
0:00:05.8]} 31. f4 {[%clk 0:00:22.9]} 31... f6 {[%clk 0:00:05.7]} 32. fxe5
{[%clk 0:00:22.2]} 32... fxe5 {[%clk 0:00:06.6]} 33. Be2 {[%clk 0:00:21]} 33...
Ke7 {[%clk 0:00:07]} 34. Nb5 {[%clk 0:00:11.2]} 34... Kd8 {[%clk 0:00:01.6]} 35.
Nxd6 {[%clk 0:00:09.7]} 35... Kc7 {[%clk 0:00:02.1]} 36. Rc6+ {[%clk 0:00:09.8]}
36... Kd7 {[%clk 0:00:02.1]} 37. Nb5 {[%clk 0:00:09.1]} 37... Bxb5 {[%clk
0:00:01.5]} 38. axb5 {[%clk 0:00:08.6]} 38... Ra2 {[%clk 0:00:01.8]} 39. Kf1
{[%clk 0:00:09]} 39... Nd6 {[%clk 0:00:02.3]} 40. Bg4+ {[%clk 0:00:07.9]} 40...
Ke7 {[%clk 0:00:02.2]} 41. Rc7+ {[%clk 0:00:07.3]} 41... Kf6 {[%clk 0:00:02.8]}
42. Rc6 {[%clk 0:00:07.7]} 42... Ke7 {[%clk 0:00:02.6]} 43. b6 {[%clk
0:00:08.1]} 43... Rb2 {[%clk 0:00:02.3]} 44. Be6 {[%clk 0:00:06.6]} 44... Nxe4
{[%clk 0:00:02.5]} 45. Rc7+ {[%clk 0:00:06.1]} 45... Kf6 {[%clk 0:00:02.6]} 46.
b7 {[%clk 0:00:06.2]} 46... Nd2+ {[%clk 0:00:02.4]} 47. Ke1 {[%clk 0:00:06]}
47... Nxc4 {[%clk 0:00:03]} 48. Bc8 {[%clk 0:00:05.2]} 48... Nd6 {[%clk
0:00:02.9]} 49. Rd7 {[%clk 0:00:04.8]} 49... Nxb7 {[%clk 0:00:02.6]} 50. Bxb7
{[%clk 0:00:04.5]} 50... e4 {[%clk 0:00:03.1]} 51. Bc6 {[%clk 0:00:04.3]} 51...
Ke5 {[%clk 0:00:03.4]} 52. Re7+ {[%clk 0:00:03]} 52... Kd4 {[%clk 0:00:03.8]}
53. d6 {[%clk 0:00:03.5]} 53... Rb1+ {[%clk 0:00:02]} 54. Ke2 {[%clk 0:00:03.5]}
54... Rb2+ {[%clk 0:00:02.7]} 55. Kd1 {[%clk 0:00:04]} 55... e3 {[%clk
0:00:02.1]} 56. d7 {[%clk 0:00:04]} 56... Rd2+ {[%clk 0:00:02.5]} 57. Kc1 {[%clk
0:00:03.9]} 57... Kc4 {[%clk 0:00:02.4]} 58. Rxe3 {[%clk 0:00:03.3]} 58... Rd6
{[%clk 0:00:02.7]} 59. Re8 {[%clk 0:00:03.4]} 59... Rxc6 {[%clk 0:00:01.8]} 60.
d8=Q {[%clk 0:00:03.9]} 60... Kb4 {[%clk 0:00:02.3]} 61. Qh4+ {[%clk 0:00:04.1]}
61... c4 {[%clk 0:00:02.5]} 62. Qd4 {[%clk 0:00:04.6]} 62... Rc5 {[%clk
0:00:03.4]} 63. Rb8+ {[%clk 0:00:04.5]} 63... Rb5 {[%clk 0:00:04.2]} 64. Rxb5+
{[%clk 0:00:04.8]} 64... Kxb5 {[%clk 0:00:05.1]} 65. Kc2 {[%clk 0:00:05.4]}
65... Kc6 {[%clk 0:00:03.6]} 66. Kc3 {[%clk 0:00:06]} 1-0